bitfinex-derivatives/quotes_ETHF0:USTF0_20260104
["timestamp","ask_amount","ask_price","bid_price","bid_amount"]
[1767488756280,4.722,3161.1,3160.0,0.00474248]
[1767488756486,5.91861997,3161.1,3160.0,0.00474248]
[1767488756791,1.19661997,3161.0,3160.0,0.00474248]
[1767488757291,1.35485997,3161.0,3160.0,0.00474248]
[1767488758175,0.15824,3161.0,3160.0,0.00474248]
[1767488761479,0.00789684,3161.2,3160.1,1.28744274]
[1767488761678,4.73989684,3161.2,3160.1,1.28744274]
[1767488761877,4.73989684,3161.2,3160.0,0.00474248]
[1767488762582,1.22511071,3161.1,3160.0,0.00474248]
[1767488765187,0.15825,3160.9,3160.0,0.00474248]
[1767488765383,1.38336071,3160.9,3159.8,1.341814]
[1767488766483,1.38336071,3160.9,3160.0,0.00318007]
[1767488767093,4.73989684,3161.2,3160.0,0.00318007]
[1767488767094,0.00789684,3161.2,3160.0,0.00318007]
[1767488767386,4.732,3161.1,3160.0,0.00318007]
[1767488768878,6.11535071,3161.1,3160.0,0.00318007]
[1767488769083,1.22511071,3161.0,3159.8,0.00346019]
[1767488770185,0.15825,3160.9,3159.8,0.00346019]
[1767488770386,1.22511071,3160.9,3158.9,1.28744274]
[1767488770586,0.15827,3160.5,3158.9,1.28744274]
[1767488770783,4.733,3160.4,3158.9,1.28744274]
[1767488771385,4.733,3160.4,3158.9,1.29110417]
[1767488771892,4.733,3160.4,3159.0,1.0273]
[1767488772189,0.15828,3160.3,3158.9,0.00366143]
[1767488772895,0.15829,3160.2,3158.9,0.00366143]
[1767488773079,1.38340071,3160.2,3158.9,0.00366143]
[1767488775792,0.15829,3160.2,3158.9,0.00366143]
[1767488776190,4.89129,3160.2,3158.9,0.00366143]
[1767488779397,1.22511071,3160.7,3159.1,1.28744274]
[1767488779600,4.733,3160.5,3159.1,1.28744274]
[1767488780294,4.733,3160.5,3159.2,1.28744274]
[1767488781592,1.22511071,3160.4,3158.9,0.00366143]
[1767488781799,1.22511071,3160.2,3158.9,0.00366143]
[1767488782596,0.15828,3160.3,3158.9,0.00366143]
[1767488784301,1.38339071,3160.3,3158.9,0.00366143]
[1767488802124,1.33989098,3160.2,3158.9,0.00366143]
[1767488802420,1.18160098,3160.0,3158.9,0.00366143]
[1767488805035,1.18160098,3159.8,3158.8,1.1875674]
[1767488805325,0.15831,3159.7,3157.8,1.20989975]
[1767488805520,0.15833,3159.4,3157.8,1.20989975]
[1767488805918,0.00474248,3158.9,3157.8,1.20989975]
[1767488806127,0.00744736,3158.9,3157.8,1.21255779]
[1767488807722,0.15829,3160.1,3158.0,1.20989975]
[1767488807922,4.726,3160.0,3158.0,1.20989975]
[1767488808117,4.88429,3160.0,3158.0,1.20989975]
[1767488809021,0.00474248,3159.3,3158.7,0.00474248]
[1767488812228,0.00474248,3159.3,3158.0,1.20989975]
[1767488815928,0.00474248,3159.3,3157.9,0.904]
[1767488816338,1.12645111,3159.3,3157.9,0.904]
[1767488816734,6.0,3159.2,3157.9,0.904]
[1767488817442,7.12266705,3159.2,3157.9,0.904]
[1767488818139,0.00474248,3159.3,3157.9,2.11389975]
[1767488818340,4.728,3159.2,3157.9,2.11389975]
[1767488818640,0.15834,3159.1,3157.9,2.11389975]
[1767488818840,4.88634,3159.1,3158.0,1.20989975]
[1767488831636,4.88634,3159.1,3157.9,0.904]
[1767488835943,4.88634,3159.1,3157.9,2.17832888]
[1767488837253,4.88634,3159.1,3158.0,1.27432888]
[1767488840655,4.88634,3159.1,3158.0,1.79959821]
[1767488841255,4.88634,3159.1,3158.1,1.27432888]
[1767488849267,4.88634,3159.1,3158.1,2.64572888]
[1767488849561,4.728,3159.1,3158.3,1.27432888]
[1767488852374,0.00474248,3159.3,3158.5,1.83274517]
[1767488852573,0.15831,3159.7,3158.8,1.83274517]
[1767488853268,0.15831,3159.7,3158.8,1.30747584]
[1767488853671,0.15831,3159.7,3158.5,0.52526933]
[1767488853875,0.52526933,3159.3,3158.8,0.00474248]
[1767488854174,0.52526933,3159.3,3158.1,1.3714]
[1767488854175,0.52526933,3159.1,3158.1,1.3714]
[1767488856670,4.739,3159.2,3158.1,1.3714]
[1767488857373,0.00397439,3160.0,3159.1,1.83274517]
[1767488858268,0.00397439,3160.0,3159.1,1.30747584]
[1767488858476,0.00397439,3160.0,3158.7,1.30747584]
[1767488858665,0.00474248,3159.9,3159.2,0.00474248]
[1767488864081,0.15826,3160.6,3159.3,1.30747584]
[1767488864485,0.15826,3160.6,3159.2,0.00474248]
[1767488865187,0.00474248,3160.2,3159.2,0.00474248]
[1767488865991,0.00474248,3160.2,3159.4,1.30747584]
[1767488866790,0.00318837,3160.6,3159.4,1.30747584]
[1767488868102,0.00474248,3160.3,3159.2,0.00474248]
[1767488872295,0.00474248,3160.3,3159.3,1.30747584]
[1767488874587,1.1949996,3162.6,3159.3,1.30747584]
[1767488874794,5.67452019,3164.3,3159.5,1.30747584]
[1767488874795,1.20293045,3162.1,3159.5,1.30747584]
[1767488874994,7.902,3162.0,3159.5,1.30747584]
[1767488875688,0.00474248,3161.1,3160.4,0.00474248]
[1767488875893,0.00474248,3161.1,3160.4,0.00778691]
[1767488879295,0.52455311,3161.0,3160.4,0.00778691]
[1767488879499,0.52455311,3161.0,3159.7,1.29156023]
[1767488880699,0.00474248,3161.1,3160.0,0.00474248]
[1767488881093,0.00474248,3161.1,3160.0,1.29789072]
[1767488885095,0.00474248,3161.1,3160.0,7.29789072]
[1767488885394,0.00380893,3162.0,3160.8,1.29314824]
[1767488885800,4.731,3163.2,3160.8,1.29314824]
[1767488886296,0.00474248,3162.3,3161.7,0.00474248]
[1767488886700,0.00728835,3162.3,3161.7,0.00474248]
[1767488894702,0.00728835,3162.3,3161.7,1.29789072]
[1767488894904,0.15814,3163.1,3161.7,1.29789072]
[1767488895810,0.00474248,3162.7,3161.7,1.29789072]
[1767488898310,0.00474248,3162.7,3161.7,0.00474248]
[1767488900016,6.00474248,3162.7,3161.7,0.00474248]
[1767488901111,0.00474248,3162.7,3161.7,1.29789072]
[1767488904610,0.00474248,3162.7,3161.7,0.00474248]
[1767488906923,6.00474248,3162.7,3161.7,0.00474248]
[1767488907715,6.00474248,3162.7,3161.8,1.0444]
[1767488908720,0.52411568,3162.5,3160.3,1.29314824]
[1767488909822,0.52411568,3162.5,3161.1,0.00474248]
[1767488910716,0.52411568,3162.5,3160.7,1.29314824]
[1767488910717,0.52411568,3162.1,3160.7,1.29314824]
[1767488910916,5.25111568,3162.1,3160.7,1.29314824]
[1767488911826,5.25111568,3162.1,3161.1,0.00474248]
[1767488912416,5.25111568,3162.1,3160.7,2.61204824]
[1767488912417,6.0,3162.0,3160.7,2.61204824]
[1767488912620,5.25111568,3162.1,3160.7,1.3189]
[1767488912820,11.25111568,3162.1,3160.7,1.3189]
[1767488913422,11.40930568,3162.1,3160.7,1.3189]
[1767488913624,11.40930568,3162.1,3161.1,0.00474248]
[1767488913826,11.40930568,3162.1,3160.7,1.3189]
[1767488915026,11.40930568,3162.1,3161.1,0.00474248]
[1767488915328,0.15819,3162.0,3160.7,1.3189]
[1767488915523,1.38945262,3162.0,3160.7,1.3189]
[1767488915726,0.98909363,3161.9,3160.7,1.3189]
[1767488916033,1.38945262,3162.0,3160.7,1.3189]
[1767488918530,6.0,3161.9,3160.7,1.3189]
[1767488919031,0.15819,3162.0,3160.7,1.3189]
[1767488919226,0.15819,3162.0,3160.8,1.2185311]
[1767488920926,0.15819,3162.0,3160.7,1.3189]
[1767488924437,0.15819,3162.0,3160.8,1.2185311]
[1767488929937,4.727,3162.1,3160.9,1.2185311]
[1767488933436,4.727,3162.1,3161.1,1.2185311]
[1767488934938,4.727,3162.1,3161.1,7.2185311]
[1767488935126,4.727,3162.1,3161.2,1.2185311]
[1767488941442,0.15816,3162.6,3161.2,7.2185311]
[1767488941644,0.15816,3162.6,3160.7,1.3189]
[1767488941645,4.727,3162.6,3161.3,1.25316861]
[1767488949660,1.2941038,3162.5,3160.9,1.25316861]
[1767488949862,1.2941038,3162.4,3160.9,1.25316861]
[1767488950657,1.2941038,3162.4,3160.7,1.3189]
[1767488950658,0.52413939,3162.1,3160.7,1.3189]
[1767488951056,6.52413939,3162.1,3160.7,1.3189]
[1767488951266,1.8293957,3161.6,3159.7,0.00305428]
[1767488951461,0.00474248,3161.0,3159.7,0.00305428]
[1767488952860,1.30999879,3161.0,3159.7,0.00305428]
[1767488957163,1.8293957,3160.8,3159.7,0.00305428]
[1767488957366,6.03025631,3160.7,3159.7,0.00305428]
[1767488958166,1.30525631,3160.6,3159.7,0.00305428]
[1767488958565,1.30525631,3160.6,3159.6,1.4002]
[1767488958767,1.30525631,3160.5,3159.6,1.4002]
[1767488959068,1.30525631,3160.5,3159.6,1.39545752]
[1767488959573,4.725,3160.7,3159.6,1.39924477]
[1767488959773,1.30525631,3160.6,3159.6,1.39924477]
[1767488960475,0.5249925,3160.2,3159.6,1.39924477]
[1767488960876,0.5249925,3160.1,3159.6,1.39924477]
[1767488961572,0.5249925,3160.3,3159.6,1.39924477]
[1767488964276,5.2499925,3160.7,3159.6,1.39924477]
[1767488966281,4.725,3160.7,3159.6,1.39924477]
[1767488966483,5.2499925,3160.7,3159.6,1.39924477]
[1767488967190,0.5249925,3160.0,3159.0,1.25316861]
[1767488967375,0.5249925,3159.9,3158.6,1.25316861]
[1767488967685,0.00474248,3159.6,3158.6,1.77816111]
[1767488968377,0.00474248,3159.6,3158.7,1.25316861]
[1767488968686,0.5249925,3159.3,3158.6,0.00350649]
[1767488968883,0.5249925,3159.5,3158.6,0.00350649]
[1767488969782,0.5249925,3159.3,3158.6,0.00350649]
[1767488970175,0.5249925,3159.5,3158.6,0.00350649]
[1767488976189,0.00474248,3159.6,3158.6,0.00350649]
[1767488976987,0.52973498,3159.6,3158.6,0.00350649]
[1767488977191,0.5249925,3159.4,3158.6,0.00350649]
[1767488979190,1.31220553,3160.5,3158.6,1.24936228]
[1767488979492,0.5249925,3159.6,3158.6,0.00350649]
[1767488979895,0.5249925,3159.8,3158.6,0.00350649]
[1767488980290,0.00474248,3159.5,3158.6,0.00350649]
[1767488980491,0.00474248,3159.5,3158.9,0.00474248]
[1767488993004,1.84194051,3159.5,3158.6,0.00350649]
[1767488993210,1.31220553,3159.4,3158.6,0.00350649]
[1767488998418,1.83719803,3159.3,3158.6,0.00350649]
[1767488999508,0.5249925,3159.0,3158.4,0.09668102]
[1767488999910,6.0,3159.4,3158.4,0.09668102]
[1767489000116,0.5249925,3159.1,3158.4,0.09668102]
[1767489000317,1.36861839,3158.6,3157.1,1.291809]
[1767489000515,0.5249925,3158.2,3157.1,1.291809]
[1767489000909,1.36861839,3158.6,3156.7,1.291809]
[1767489000910,0.5249925,3157.9,3156.7,1.291809]
[1767489001120,0.00475007,3157.6,3156.7,1.291809]
[1767489001323,0.52974257,3157.6,3156.7,0.00316974]
[1767489001619,0.00846049,3157.6,3156.7,0.00316974]
[1767489002224,0.00846049,3157.6,3157.3,1.291809]
[1767489002411,0.15834,3159.2,3157.3,1.291809]
[1767489002613,0.5249925,3158.8,3157.5,1.8168015]
[1767489002812,0.5249925,3158.8,3157.5,1.291809]
[1767489003012,0.5249925,3159.1,3157.8,1.291809]
[1767489003220,0.5249925,3159.1,3157.4,1.1628]
[1767489003221,5.2449925,3159.4,3157.9,1.8168015]
[1767489003421,0.00475007,3158.8,3158.1,0.00475007]
[1767489007316,0.00475007,3158.8,3158.2,1.8168015]
[1767489007513,0.00404927,3159.4,3158.2,1.8168015]
[1767489008625,0.00475007,3159.1,3158.2,1.8168015]
[1767489009123,0.00475007,3159.1,3158.2,1.291809]
[1767489013027,0.00475007,3159.1,3158.1,0.00475007]
[1767489016525,0.00475007,3159.1,3158.7,1.8168015]
[1767489016828,0.00404927,3159.4,3158.7,1.8168015]
[1767489017031,0.00404927,3159.4,3158.7,1.291809]
[1767489017730,0.00879934,3159.4,3158.7,1.291809]
[1767489018130,0.00879934,3159.4,3158.4,0.5249925]
[1767489018931,0.00879934,3159.4,3158.4,1.8168015]
[1767489019134,0.00879934,3159.4,3158.9,1.8168015]
[1767489019334,4.716,3159.8,3158.9,1.8168015]
[1767489019335,4.716,3159.8,3158.9,1.291809]
[1767489020335,0.00475007,3159.7,3158.9,1.291809]
[1767489020729,0.00475007,3159.7,3158.7,0.5249925]
[1767489021029,0.00475007,3159.7,3158.6,1.8168015]
[1767489022635,0.00475007,3159.7,3158.6,1.291809]
[1767489024025,7.37336846,3159.7,3158.1,0.00475007]
[1767489024332,1.37336846,3159.7,3158.1,0.00475007]
[1767489025234,1.37336846,3159.7,3158.1,1.29655907]
[1767489025644,0.00475007,3159.7,3158.1,1.29655907]
[1767489031438,0.00475007,3159.7,3158.3,1.36429197]
[1767489041244,0.00475007,3159.7,3158.3,7.36429197]
[1767489041439,4.358,3160.1,3159.0,1.42184415]
[1767489042445,4.36142933,3160.1,3159.0,1.42471902]
[1767489042642,0.00475007,3159.9,3159.0,1.42471902]
[1767489050751,4.36142933,3160.1,3159.0,1.42471902]
[1767489051750,0.00314142,3159.9,3159.0,1.42471902]
[1767489055954,0.00314142,3159.9,3159.1,1.1056]
[1767489058752,0.00314142,3159.9,3159.1,2.52744415]
[1767489059252,0.00314142,3159.9,3159.2,1.42184415]
[1767489067181,0.00314142,3159.9,3159.1,1.1056]
[1767489067882,0.00314142,3159.9,3159.1,2.52888581]
[1767489068483,0.00314142,3159.9,3159.2,1.42328581]
[1767489086786,0.00314142,3159.9,3159.1,1.1056]
[1767489089793,0.00314142,3159.9,3159.1,2.52888581]
[1767489091693,0.52495654,3159.8,3159.1,1.1056]
[1767489092188,0.52495654,3159.7,3159.1,1.1056]
[1767489092692,6.52809796,3159.9,3159.1,1.1056]
[1767489093095,6.52809796,3159.9,3159.0,0.00287487]
[1767489093295,6.00314142,3159.9,3159.0,0.00287487]
[1767489093595,0.00314142,3159.9,3159.0,1.37261349]
[1767489100897,0.52495654,3159.6,3159.0,0.00287487]
[1767489101100,4.72,3159.5,3159.0,0.00287487]
[1767489101301,0.52495654,3159.4,3158.6,1.36973862]
[1767489101799,0.52495654,3159.4,3158.5,1.0987]
[1767489102399,0.52495654,3159.4,3158.5,1.10215571]
[1767489103592,0.52495654,3159.2,3158.5,1.10215571]
[1767489104696,0.52495654,3159.4,3158.5,1.10215571]
[1767489105795,0.52495654,3159.1,3158.5,1.10215571]
[1767489108501,6.15832,3159.4,3158.5,1.10215571]
[1767489108694,0.52495654,3159.2,3158.5,1.10215571]
[1767489110390,0.52495654,3159.2,3158.5,0.00345571]
[1767489111398,6.15832,3159.4,3158.5,0.00345571]
[1767489111794,0.52495654,3159.2,3158.5,0.00345571]
[1767489113308,0.52495654,3159.0,3158.5,0.00345571]
[1767489113610,4.743,3158.9,3158.2,1.36973862]
[1767489114606,4.743,3158.9,3158.2,1.37310393]
[1767489114804,4.743,3158.9,3158.2,0.00336531]
[1767489115109,0.52495654,3158.8,3158.2,0.00336531]
[1767489117514,0.52495654,3158.8,3158.1,0.00475007]
[1767489118618,0.52495654,3158.8,3158.1,0.00817263]
[1767489121321,0.52495654,3158.5,3157.8,1.3632]
[1767489121516,0.52495654,3158.2,3157.5,0.74559769]
[1767489121820,0.52495654,3157.9,3157.0,1.4383036]
[1767489122119,4.75,3157.8,3157.0,1.4383036]
[1767489122324,0.00475007,3157.7,3157.1,0.00475007]
[1767489123219,0.00475007,3157.7,3157.1,1.44305367]
[1767489130326,1.77105722,3157.8,3157.1,1.44305367]
[1767489130717,1.77105722,3157.8,3157.1,0.00475007]
[1767489131528,1.77419864,3157.8,3157.1,0.00475007]
[1767489136137,2.29915518,3157.8,3157.1,0.00475007]
[1767489136435,1.77419864,3157.8,3157.1,0.00475007]
[1767489144434,1.77419864,3157.8,3157.0,0.00391363]
[1767489145227,1.77419864,3157.8,3157.1,0.00475007]
[1767489145631,1.41087243,3157.7,3157.1,0.00475007]
[1767489145836,1.56928243,3157.7,3156.6,1.154]
[1767489147032,1.56928243,3157.7,3156.8,0.00475007]
[1767489150037,1.37466995,3157.6,3156.8,0.00475007]
[1767489150236,1.37466995,3157.6,3156.6,1.15791728]
[1767489150535,0.52567857,3157.5,3155.7,10.78810619]
[1767489150734,1.53307995,3157.6,3155.7,10.78810619]
[1767489151131,0.15842,3157.5,3155.7,10.78810619]
[1767489151337,1.37466995,3157.3,3156.3,0.00475007]
[1767489151538,1.37466995,3157.3,3156.3,0.00866388]
[1767489152144,1.53309995,3157.3,3156.3,0.00866388]
[1767489152346,2.05235349,3157.2,3155.6,0.97252573]
[1767489152539,1.52667492,3157.1,3155.6,0.97252573]
[1767489153141,1.52667492,3157.1,3155.7,1.2363]
[1767489153543,1.52667492,3157.1,3156.1,0.00475007]
[1767489153743,0.15843,3157.3,3156.1,0.00475007]
[1767489154146,4.745,3157.2,3156.1,0.00475007]
[1767489155737,4.745,3157.2,3156.1,6.00475007]
[1767489159455,4.745,3157.2,3156.1,7.65520394]
[1767489159753,0.15842,3157.5,3156.1,7.65520394]
[1767489162037,3.168,3157.6,3156.1,7.65520394]
[1767489162242,3.168,3157.6,3156.1,1.65520394]
[1767489163541,3.168,3157.6,3156.1,7.65520394]
[1767489164354,3.168,3157.6,3156.1,1.65520394]
[1767489166157,3.168,3157.6,3156.1,7.65520394]
[1767489170757,4.69467492,3157.6,3156.1,7.65520394]
[1767489170958,1.52667492,3157.5,3156.1,6.53042864]
[1767489171852,1.52667492,3157.5,3156.1,0.53042864]
[1767489176864,1.52667492,3157.5,3156.2,1.2411]
[1767489181170,3.168,3157.6,3156.2,2.22936206]
[1767489182765,6.21399051,3157.7,3156.2,2.22936206]
[1767489183463,1.46699051,3157.6,3156.2,1.2411]
[1767489199475,4.90622148,3157.8,3156.3,1.02073663]
[1767489199476,4.74781148,3157.8,3156.3,1.02073663]
[1767489200081,0.00681148,3157.8,3156.8,0.52567857]
[1767489200578,4.739,3158.3,3156.8,6.52567857]
[1767489200782,4.739,3158.3,3156.8,0.52567857]
[1767489200973,1.46699051,3158.4,3157.2,0.52567857]
[1767489201677,1.46699051,3158.8,3157.2,6.52567857]
[1767489201874,0.00475007,3158.3,3157.2,1.53899746]
[1767489202073,1.47015968,3158.8,3157.2,1.53899746]
[1767489202269,1.47015968,3158.8,3157.2,1.01331889]
[1767489202474,1.47015968,3158.8,3157.8,0.52536289]
[1767489203284,0.00475007,3158.6,3158.0,0.00475007]
[1767489203484,0.00475007,3158.6,3158.0,0.00867506]
[1767489206485,0.00316917,3158.8,3158.2,0.52536289]
[1767489206787,1.46699051,3159.2,3158.4,0.52536289]
[1767489207286,1.46699051,3159.2,3158.2,0.52536289]
[1767489207585,0.00475007,3159.0,3158.2,0.52536289]
[1767489210189,0.00475007,3159.0,3158.0,0.00867506]
[1767489210487,0.00475007,3159.0,3158.1,0.52536289]
[1767489210687,1.46590387,3159.0,3158.0,0.00867506]
[1767489210886,1.4611538,3158.9,3158.0,0.00867506]
[1767489211087,0.53011296,3159.0,3158.0,0.00867506]
[1767489211088,1.4611538,3158.7,3158.0,0.00867506]
[1767489211484,1.4611538,3158.7,3158.0,0.53403795]
[1767489211985,1.4611538,3158.7,3158.0,0.00867506]
[1767489214287,1.53278143,3158.6,3158.0,0.00867506]
[1767489214488,1.53278143,3158.4,3158.0,0.00867506]
[1767489214786,1.53278143,3158.4,3157.2,0.52536289]
[1767489215679,1.53278143,3158.4,3157.5,0.00475007]
[1767489219592,1.53278143,3157.9,3157.5,0.00475007]
[1767489219792,1.53278143,3157.9,3156.3,12.13928138]
[1767489219793,1.53278143,3157.7,3156.3,0.68384289]
[1767489219988,1.53278143,3157.7,3156.5,0.52536289]
[1767489220995,1.53278143,3157.7,3156.5,0.52941604]
[1767489221292,0.00475007,3157.4,3156.8,0.00475007]
[1767489221792,1.5375315,3157.4,3156.8,0.00475007]
[1767489222586,1.5375315,3157.4,3156.8,1.39475007]
[1767489228096,1.5375315,3157.4,3156.8,0.81329521]
[1767489229100,1.5375315,3157.4,3156.8,0.81804528]
[1767489232601,1.5375315,3157.4,3156.5,0.00405315]
[1767489233595,1.5375315,3157.4,3156.6,0.0031667]
[1767489233799,2.05814432,3157.3,3156.5,0.00405315]
[1767489234401,1.53278143,3157.2,3156.5,0.00405315]
[1767489239905,1.53278143,3157.2,3156.5,0.52941604]
[1767489242009,0.00475007,3157.4,3156.8,0.52536289]
[1767489243224,0.00475007,3157.4,3156.5,0.00405315]
[1767489243512,0.00475007,3157.4,3156.7,0.52536289]
[1767489244606,1.44297458,3158.3,3157.0,0.52536289]
[1767489244811,1.44297458,3158.3,3157.3,0.52536289]
[1767489245410,1.44297458,3158.3,3157.1,0.52536289]
[1767489245714,0.00475007,3158.0,3157.4,0.00475007]
[1767489252120,0.00475007,3158.0,3157.5,0.52536289]
[1767489256022,4.728,3158.6,3157.8,0.52536289]
[1767489257120,0.00475007,3158.5,3157.8,0.52536289]
[1767489259929,0.00475007,3158.5,3157.6,0.52536289]
[1767489262531,0.00475007,3158.5,3157.4,0.00475007]
[1767489265818,0.00475007,3158.5,3157.4,0.53021802]
[1767489267227,0.00475007,3158.5,3157.4,0.00475007]
[1767489268421,1.44772465,3158.5,3157.4,0.00475007]
[1767489268626,1.44297458,3158.2,3156.5,11.98485453]
[1767489268829,1.44297458,3158.2,3156.5,5.63985453]
[1767489269029,1.44297458,3158.2,3156.5,0.00405315]
[1767489272534,1.44297458,3158.2,3157.0,0.00475007]
[1767489282856,7.44297458,3158.2,3157.0,0.00475007]
[1767489283054,1.57558276,3158.1,3157.0,0.00475007]
[1767489286347,1.57558276,3158.1,3157.1,1.202]
[1767489291656,4.89512007,3158.5,3157.1,1.202]
[1767489291958,1.57558276,3158.4,3157.1,1.202]
[1767489297360,1.57558276,3158.4,3157.0,0.00475007]
[1767489300468,0.00475007,3158.5,3157.3,0.52546795]
[1767489301067,1.53377024,3159.2,3157.7,0.52546795]
[1767489301564,1.53377024,3159.2,3157.7,6.52546795]
[1767489301759,1.53377024,3159.2,3158.1,0.52546795]
[1767489301965,0.00326321,3159.2,3158.1,0.52546795]
[1767489302161,0.00475007,3159.0,3158.1,0.52546795]
[1767489302366,1.53050703,3159.6,3158.1,0.52546795]
[1767489303365,0.00475007,3159.2,3158.1,0.52546795]
[1767489303561,1.53347711,3159.6,3158.5,0.52546795]
[1767489303757,1.53347711,3159.6,3158.1,0.52546795]
[1767489304074,1.53347711,3159.6,3158.5,0.52546795]
[1767489304268,1.53347711,3159.6,3158.2,6.0]
[1767489304567,0.00475007,3159.2,3158.6,0.00475007]
[1767489304769,1.53347711,3159.6,3158.6,0.00475007]
[1767489305661,0.00475007,3159.4,3158.6,0.00475007]
[1767489306470,1.53347711,3159.6,3158.6,0.00475007]
[1767489307569,0.0031667,3159.4,3158.6,0.00475007]
[1767489309363,1.53050703,3160.0,3158.6,0.00475007]
[1767489309864,1.53050703,3160.0,3158.6,0.53021802]
[1767489310461,1.53431073,3160.0,3158.6,0.00475007]
[1767489313774,1.53431073,3160.0,3158.6,0.53021802]
[1767489315879,1.53431073,3160.0,3158.6,0.00475007]
[1767489324487,1.53431073,3160.0,3158.7,0.52508221]
[1767489325174,1.53431073,3160.0,3158.9,0.52508221]
[1767489325372,1.53431073,3160.0,3158.9,0.52760705]
[1767489325573,1.53431073,3160.0,3158.9,0.00252484]
[1767489325778,0.0038037,3160.0,3159.5,0.52508221]
[1767489326071,2.05939294,3160.0,3158.9,0.00252484]
[1767489326280,1.53431073,3160.0,3158.9,0.52760705]
[1767489327085,1.53431073,3160.0,3158.9,0.00252484]
[1767489327677,1.53050703,3159.7,3158.9,0.00252484]
[1767489327877,1.53050703,3158.9,3157.5,0.52508221]
[1767489328081,1.53050703,3158.9,3157.2,5.63580138]
[1767489328389,1.53050703,3158.9,3157.6,1.92108221]
[1767489328594,1.53050703,3158.9,3157.6,1.396]
[1767489328773,1.53050703,3158.9,3157.6,1.39962951]
[1767489329095,1.5352571,3158.6,3157.9,0.00475007]
[1767489333383,1.57688312,3158.4,3157.6,1.39962951]
[1767489334494,1.57688312,3158.4,3157.7,0.00475007]
[1767489335584,1.57688312,3158.3,3156.5,0.15847]
[1767489335793,1.57688312,3158.3,3157.0,0.52508221]
[1767489336593,1.57688312,3158.3,3157.3,0.00475007]
[1767489339389,1.57688312,3158.2,3157.3,0.00475007]
[1767489339590,1.57688312,3158.1,3157.0,0.00293144]
[1767489340788,1.57688312,3157.9,3157.0,0.00293144]
[1767489346593,1.57688312,3157.9,3157.1,0.00475007]
[1767489351515,0.52508221,3157.7,3157.0,0.00293144]
[1767489351698,2.10196533,3157.4,3155.8,0.757137]
[1767489351902,1.57688312,3157.3,3155.8,0.757137]
[1767489352113,1.57688312,3157.3,3155.8,1.28221921]
[1767489352822,0.00475007,3156.9,3155.8,1.28502268]
[1767489353520,0.00475007,3156.9,3156.0,0.0031667]
[1767489353917,0.00475007,3156.9,3156.0,0.52824891]
[1767489355122,0.00475007,3156.9,3156.0,0.0031667]
[1767489357223,0.00475007,3156.9,3155.9,0.48824891]
[1767489358625,0.00475007,3156.9,3155.8,0.75994047]
[1767489358928,0.00475007,3156.9,3156.0,0.52508221]
[1767489359925,0.00475007,3156.9,3155.8,0.75994047]
[1767489360227,0.00475007,3156.9,3155.9,0.52508221]
[1767489360915,0.00475007,3156.9,3155.8,0.00280347]
[1767489361120,1.59604614,3156.8,3155.8,0.00280347]
[1767489363520,0.00475007,3156.9,3155.6,0.97252573]
[1767489363521,1.59604614,3156.5,3155.6,0.97252573]
[1767489363721,6.31004614,3156.5,3155.6,0.97252573]
[1767489364518,12.31004614,3156.5,3155.6,0.97520524]
[1767489370322,0.52508221,3155.9,3154.4,1.55863674]
[1767489370626,4.733,3155.8,3154.5,1.55863674]
[1767489370821,0.00475007,3155.5,3154.5,1.55863674]
[1767489371226,0.00475007,3155.5,3154.5,1.56122079]
[1767489374725,0.14471525,3156.6,3155.3,0.52508221]
[1767489374928,5.72044516,3156.5,3155.4,0.52508221]
[1767489375126,0.98844516,3156.4,3155.3,0.52508221]
[1767489375331,4.732,3156.5,3155.1,1.55863674]
[1767489375332,0.98847014,3156.3,3155.1,1.55863674]
[1767489375530,0.52508221,3156.0,3154.6,2.08371895]
[1767489375928,0.00475007,3155.6,3155.0,0.00475007]
[1767489376130,4.733,3155.5,3154.5,0.00258405]
[1767489376729,4.733,3155.5,3154.6,2.08371895]
[1767489376931,4.733,3155.5,3154.7,1.55863674]
[1767489377535,4.733,3155.5,3154.5,0.00258405]
[1767489377933,1.59604614,3154.8,3152.1,0.15869]
[1767489378136,0.00475007,3153.8,3152.8,0.52508221]
[1767489378337,4.733,3154.5,3153.6,0.52508221]
[1767489378939,4.7356011,3154.5,3153.6,0.52872749]
[1767489379442,0.00475783,3154.4,3153.7,0.00475783]
[1767489380641,1.924,3154.9,3154.0,2.08371895]
[1767489381037,1.924,3154.9,3154.0,2.08271895]
[1767489381339,1.59604614,3155.8,3154.4,0.52508221]
[1767489381541,0.00475783,3155.4,3154.4,0.52508221]
[1767489381845,0.00704768,3155.4,3154.0,0.52508221]
[1767489382032,0.00704768,3155.4,3154.1,3.06483674]
[1767489383744,0.00704768,3155.4,3154.2,0.52508221]
[1767489384547,0.00704768,3155.4,3154.5,1.55863674]
[1767489386053,4.733,3155.7,3154.6,1.55863674]
[1767489387138,0.00475783,3155.5,3154.6,1.55863674]
[1767489388348,4.73562859,3155.7,3154.6,1.55863674]
[1767489389343,0.00475783,3155.5,3154.6,1.55863674]
[1767489389742,4.73562859,3155.7,3154.6,1.55863674]
[1767489390350,4.73562859,3155.7,3154.7,0.52639623]
[1767489390648,4.733,3156.1,3155.1,0.52639623]
[1767489390835,0.00475783,3155.9,3155.3,0.00475783]
[1767489391439,4.733,3156.1,3155.3,0.00475783]
[1767489392453,4.7355119,3156.1,3155.3,0.00475783]
[1767489392659,0.00315376,3156.0,3155.3,0.00475783]
[1767489393151,0.00315376,3156.0,3155.3,3.06959457]
[1767489398052,0.00315376,3156.0,3155.3,4.64299555]
[1767489400454,0.15844,3157.0,3155.7,0.52639623]
[1767489400769,4.734,3156.9,3155.7,1.57340098]
[1767489401657,4.734,3156.9,3155.8,3.06483674]
[1767489401958,4.73772454,3156.9,3155.8,3.06483674]
[1767489402749,0.00372454,3156.9,3155.8,4.63823772]
[1767489402952,0.00372454,3156.9,3156.1,3.06483674]
[1767489403148,0.00372454,3156.9,3156.1,3.06788654]
[1767489403652,0.00372454,3156.9,3156.1,0.0030498]
[1767489404858,0.00372454,3156.9,3156.1,3.06788654]
[1767489406159,3.17,3157.8,3156.1,4.64128752]
[1767489406361,4.735,3157.7,3156.1,1.57645078]
[1767489407254,4.73796827,3157.7,3156.1,1.57645078]
[1767489408652,6.41253252,3157.7,3156.1,1.57645078]
[1767489410360,1.67456425,3157.6,3156.1,1.57645078]
[1767489410557,0.52639623,3157.3,3156.1,0.0030498]
[1767489410758,2.20096048,3157.3,3156.1,0.0030498]
[1767489410958,2.20096048,3157.3,3156.2,3.06483674]
[1767489411159,1.67456425,3157.2,3156.2,3.06483674]
[1767489411352,4.742,3157.1,3156.1,0.0030498]
[1767489411552,4.742,3157.1,3156.2,3.06483674]
[1767489412653,0.00372454,3156.9,3156.1,0.0030498]
[1767489412956,0.00372454,3156.9,3156.2,1.0453603]
[1767489416458,6.52639623,3156.8,3155.3,1.57815881]